[Event "95th Caplin Hastings Congress"]
[Site "Hastings"]
[Date "2020.01.02"]
[Round "6.14"]
[White "Willson, Ollie"]
[Black "Merry, Alan B"]
[Result "0-1"]
[ECO "A50"]
[WhiteElo "2082"]
[BlackElo "2420"]
[Annotator "ChessBase"]
[PlyCount "106"]
[EventDate "2019.12.28"]
[EventType "swiss"]
[EventCountry "ENG"]
[SourceTitle "playchess.com"]
[Source "ChessBase"]
[SourceQuality "1"]
[TimeControl "40/6600+30:3000+30"]

1. d4 {[%emt 0:09:33]} Nf6 {[%emt 0:09:32]} 2. Nf3 {[%emt 0:00:09]} b6 {[%emt 0:00:03]} 3. g3 {[%emt 0:00:52]} Bb7 {[%emt 0:00:03]} 4. Bg2 {[%emt 0:00:03]} g6 {[%emt 0:00:04]} 5. c4 {[%emt 0:00:29]} Bg7 {[%emt 0:00:04]} 6. Nc3 {[%emt 0:00:02]} Ne4 {[%emt 0:01:30]} 7. Nxe4 {[%emt 0:03:24]} Bxe4 {[%emt 0:00:05]} 8. O-O {[%emt 0:00:04]} O-O {[%emt 0:00:06]} 9. Bf4 {[%emt 0:14:42]} d6 {[%emt 0:06:24]} 10. Qd2 {[%emt 0:02:47]} Re8 {[%emt 0:03:49]} 11. Bh6 {[%emt 0:12:17]} Bh8 {[%emt 0:01:06]} 12. Qf4 {[%emt 0:15:01]} f5 {[%emt 0:02:29]} 13. Rad1 {[%emt 0:13:57]} e6 {[%emt 0:01:36]} 14. Bh3 {[%emt 0:07:42]} Nc6 {[%emt 0:21:47]} 15. d5 {[%emt 0:15:02]} e5 {[%emt 0:04:34]} 16. Qe3 {[%emt 0:01:02]} Bxf3 {[%emt 0:00:45]} 17. Qxf3 {[%emt 0:08:24]} e4 {[%emt 0:00:50]} 18. Qb3 {[%emt 0:01:29]} Ne5 {[%emt 0:02:16]} 19. Be3 {[%emt 0:00:45]} h5 {[%emt 0:07:21]} 20. Bd4 {[%emt 0:01:53]} Nd7 {[%emt 0:14:25]} 21. Bxh8 {[%emt 0:03:19]} Kxh8 {[%emt 0:00:01]} 22. Qc3+ {[%emt 0:00:10]} Kh7 {[%emt 0:04:51]} 23. f3 {[%emt 0:00:28]} Nf6 {[%emt 0:00:44]} 24. Bg2 {[%emt 0:01:22]} Qe7 {[%emt 0:00:28]} 25. Rd4 {[%emt 0:02:28]} exf3 {[%emt 0:05:08]} 26. exf3 {[%emt 0:00:01]} Qe3+ {[%emt 0:00:16]} 27. Qxe3 {[%emt 0:00:06]} Rxe3 {[%emt 0:00:03]} 28. Rfd1 {[%emt 0:03:55]} Rae8 {[%emt 0:00:16]} 29. R4d3 {[%emt 0:00:20]} Rxd3 {[%emt 0:01:39]} 30. Rxd3 {[%emt 0:00:01]} Re2 {[%emt 0:00:13]} 31. Rb3 {[%emt 0:03:04]} Kg7 {[%emt 0:02:11]} 32. Bf1 {[%emt 0:00:35]} Rc2 {[%emt 0:00:30]} 33. Ra3 {[%emt 0:00:27]} a5 {[%emt 0:00:41]} 34. Rb3 {[%emt 0:00:34]} Nd7 {[%emt 0:02:11]} 35. f4 {[%emt 0:00:28]} Nc5 {[%emt 0:00:31]} 36. Rb5 {[%emt 0:00:14]} Na4 {[%emt 0:06:57]} 37. Rb3 {[%emt 0:00:15]} Kf7 {[%emt 0:00:56]} 38. Rf3 {[%emt 0:01:00]} Rxb2 {[%emt 0:01:06]} 39. Rf2 {[%emt 0:00:11]} Ke7 {[%emt 0:06:22]} 40. Rxb2 {[%emt 0:00:38]} Nxb2 {[%emt 0:00:02]} 41. Be2 {[%emt 0:05:30]} Na4 {[%emt 0:03:16]} 42. a3 {[%emt 0:01:09]} Nc3 {[%emt 0:00:34]} 43. Bd3 {[%emt 0:04:51]} b5 {[%emt 0:07:33]} 44. cxb5 {[%emt 0:04:24]} Nxd5 {[%emt 0:00:42]} 45. Kg2 {[%emt 0:25:22]} Nf6 {[%emt 0:01:12]} 46. Kh3 {[%emt 0:03:27]} Ng4 {[%emt 0:00:23]} 47. Bc4 {[%emt 0:00:25]} Ne3 {[%emt 0:00:24]} 48. Be2 {[%emt 0:02:24]} d5 {[%emt 0:00:25]} 49. Kh4 {[%emt 0:00:18]} Kf6 {[%emt 0:00:11]} 50. a4 {[%emt 0:04:11]} Nc4 {[%emt 0:00:38]} 51. h3 {[%emt 0:02:05]} Nb2 {[%emt 0:00:46]} 52. g4 {[%emt 0:00:09]} hxg4 {[%emt 0:00:03]} 53. hxg4 {[%emt 0:00:05]} d4 {[%emt 0:00:49]} 0-1

[Event "95th Caplin Hastings Congress"]
[Site "Hastings"]
[Date "2020.01.02"]
[Round "6.15"]
[White "Murphy, Conor E"]
[Black "De Coverly, Roger D"]
[Result "1-0"]
[ECO "C55"]
[WhiteElo "2407"]
[BlackElo "1986"]
[Annotator "NA"]
[PlyCount "75"]
[EventDate "2019.12.28"]
[EventType "swiss"]
[EventCountry "ENG"]
[SourceTitle "playchess.com"]
[Source "ChessBase"]
[SourceQuality "1"]
[TimeControl "40/6600+30:3000+30"]

1. e4 {[%emt 0:09:46]} e5 {[%emt 0:09:37]} 2. Nf3 {[%emt 0:00:08]} Nc6 {[%emt 0:00:04]} 3. Bc4 {[%emt 0:00:21]} Nf6 {[%emt 0:00:31]} 4. d3 {[%emt 0:00:16]} Be7 {[%emt 0:00:43]} 5. O-O {[%emt 0:00:24]} O-O {[%emt 0:00:12]} 6. Re1 {[%emt 0:00:17]} d6 {[%emt 0:00:57]} 7. a4 {[%emt 0:00:24]} h6 {[%emt 0:02:25]} 8. a5 {[%emt 0:01:32] C55: Two Knights: 4 d3, 4 d4 exd4 5 e5 and Max Lange Attack} (8. c3 a6 9. Nbd2 Be6 10. Qc2 Qd7 11. b4 Nh7 12. Bxe6 fxe6 13. Bb2 b6 14. b5 axb5 15. axb5 Na5 16. c4 {½-½ (54) So,W (2812)-Ivanchuk,V (2738) Leuven 2017}) 8... a6 {[%emt 0:00:28]} 9. c3 {[%emt 0:00:37]} Bg4 {[%emt 0:06:49]} 10. Nbd2 {[%emt 0:06:39]} Na7 $146 {[%emt 0:03:27]} ({Predecessor:} 10... Qd7 11. Qb3 Nh5 12. d4 Nf4 13. Bf1 Kh8 14. d5 {½-½ (26) Biolek,R (2422)-Stocek,J (2578) Czechia 2008}) 11. h3 {[%emt 0:09:54]} Bxf3 {[%emt 0:01:56]} 12. Nxf3 {[%emt 0:02:34]} c5 {[%emt 0:00:17]} 13. Nh4 {[%emt 0:05:49]} Kh7 {[%emt 0:05:43]} 14. Qb3 {[%emt 0:07:09]} Nxe4 {[%emt 0:06:08]} (14... Ng8 $16) 15. dxe4 {[%emt 0:03:40]} Bxh4 {[%emt 0:00:15]} 16. g3 {[%emt 0:02:37]} Bg5 {[%emt 0:02:49]} 17. Qxb7 {[%emt 0:01:34]} Bxc1 {[%emt 0:03:57]} 18. Rexc1 {[%emt 0:00:25]} ({Don't do} 18. Raxc1 $6 Nb5 $16) 18... Nb5 {[%emt 0:01:41]} 19. Bxb5 {[%emt 0:02:25]} axb5 {[%emt 0:00:05]} 20. Qxb5 {[%emt 0:00:32]} Qg5 {[%emt 0:03:01]} 21. a6 {[%emt 0:07:54]} f5 {[%emt 0:03:42]} 22. exf5 {[%emt 0:15:44]} Qxf5 {[%emt 0:01:48]} 23. Qe2 $18 {[%emt 0:00:59]} Qxh3 {[%emt 0:10:44]} 24. b4 {[%emt 0:01:34]} Qc8 {[%emt 0:03:17]} 25. b5 {[%emt 0:01:24]} Qc7 {[%emt 0:02:20]} 26. Qe4+ {[%emt 0:01:55]} Kh8 {[%emt 0:01:35]} 27. Rcb1 {[%emt 0:02:50]} Qb6 {[%emt 0:03:46]} 28. c4 {[%emt 0:01:50]} Ra7 {[%emt 0:03:50]} 29. Ra3 {[%emt 0:01:24]} Rb8 {[%emt 0:01:05]} 30. Kg2 {[%emt 0:01:07]} Qd8 {[%emt 0:02:15]} 31. Rd1 {[%emt 0:01:06]} Rb6 {[%emt 0:08:40]} 32. Qxe5 {[%emt 0:03:59]} Qf8 {[%emt 0:02:07]} 33. Qd5 {[%emt 0:00:23]} Qf6 {[%emt 0:02:23]} 34. Rf3 {[%emt 0:00:24]} Qd8 {[%emt 0:02:43]} 35. Rf7 {[%emt 0:01:20]} Rxf7 {[%emt 0:05:44]} 36. Qxf7 {[%emt 0:00:07]} Qa8+ {[%emt 0:01:04]} 37. Qd5 {[%emt 0:00:20]} Qa7 {[%emt 0:00:44]} 38. Rd3 {[%emt 0:00:37]} 1-0

[Event "95th Caplin Hastings Congress"]
[Site "Hastings"]
[Date "2020.01.02"]
[Round "6.16"]
[White "Flear, Christine"]
[Black "Petrov, Vladimir Sergeev"]
[Result "0-1"]
[ECO "D02"]
[WhiteElo "2035"]
[BlackElo "2355"]
[Annotator "NA"]
[PlyCount "74"]
[EventDate "2019.12.28"]
[EventType "swiss"]
[EventCountry "ENG"]
[SourceTitle "playchess.com"]
[Source "ChessBase"]
[SourceQuality "1"]
[TimeControl "40/6600+30:3000+30"]

1. d4 {[%emt 0:09:33]} Nf6 {[%emt 0:20:27]} 2. Nf3 {[%emt 0:00:10]} e6 {[%emt 0:00:06]} 3. g3 {[%emt 0:00:08]} d5 {[%emt 0:00:35]} 4. Bg2 {[%emt 0:00:58]} c5 {[%emt 0:01:48]} 5. O-O {[%emt 0:00:21]} cxd4 {[%emt 0:00:22]} 6. Nxd4 {[%emt 0:00:23]} e5 {[%emt 0:00:34]} 7. Nb3 {[%emt 0:00:36]} Nc6 {[%emt 0:00:20]} 8. Bg5 {[%emt 0:04:32]} Be6 {[%emt 0:00:09]} 9. Nc3 {[%emt 0:09:48]} d4 {[%emt 0:00:07]} 10. Ne4 {[%emt 0:02:30]} Be7 {[%emt 0:07:15]} 11. Bxf6 {[%emt 0:05:51]} Bxf6 {[%emt 0:05:16]} 12. Nbc5 {[%emt 0:09:41]} Bc8 {[%emt 0:00:28]} 13. c3 {[%emt 0:05:34]} Be7 {[%emt 0:10:30]} 14. cxd4 {[%emt 0:02:03]} f5 {[%emt 0:04:23]} 15. Nd2 {[%emt 0:04:13]} Qxd4 {[%emt 0:02:50]} 16. Ndb3 {[%emt 0:09:35]} (16. Bxc6+ $5 bxc6 17. Ndb3 Qxd1 18. Rfxd1 $11) 16... Qxd1 $14 {[%emt 0:04:33]} 17. Rfxd1 {[%emt 0:00:37]} e4 {[%emt 0:00:44]} 18. f3 {[%emt 0:06:35]} a5 {[%emt 0:09:39]} 19. Na4 {[%emt 0:10:37]} O-O {[%emt 0:13:49]} 20. fxe4 {[%emt 0:12:13]} fxe4 {[%emt 0:01:19]} 21. Nb6 {[%emt 0:05:38]} Rb8 {[%emt 0:00:11]} 22. Bxe4 {[%emt 0:02:51]} Bf6 {[%emt 0:07:52]} 23. Rab1 {[%emt 0:01:17]} Bg4 {[%emt 0:02:57]} 24. Nd7 {[%emt 0:06:54]} Bxd7 {[%emt 0:01:10]} 25. Rxd7 {[%emt 0:00:02]} Rbe8 {[%emt 0:04:55]} 26. Bd5+ {[%emt 0:03:35]} Kh8 {[%emt 0:00:30]} 27. Bxc6 {[%emt 0:02:51]} bxc6 {[%emt 0:00:13]} 28. Nxa5 {[%emt 0:00:31]} Rxe2 {[%emt 0:04:21]} 29. b4 {[%emt 0:01:03]} Bg5 {[%emt 0:02:49]} 30. Nxc6 {[%emt 0:00:33]} Rff2 {[%emt 0:01:45]} 31. Rb3 {[%emt 0:02:03]} Rg2+ {[%emt 0:00:42]} 32. Kf1 {[%emt 0:00:06]} Ref2+ {[%emt 0:00:52]} 33. Ke1 {[%emt 0:00:14]} Rxa2 {[%emt 0:00:11]} 34. Kf1 {[%emt 0:00:38]} Rxh2 {[%emt 0:00:32]} 35. Kg1 {[%emt 0:00:22]} Rhc2 {[%emt 0:00:31]} 36. Rf3 {[%emt 0:01:50]} Ra1+ {[%emt 0:00:20]} 37. Rf1 {[%emt 0:00:21]} Be3+ {[%emt 0:00:04]} 0-1

[Event "95th Caplin Hastings Congress"]
[Site "Hastings"]
[Date "2020.01.02"]
[Round "6.17"]
[White "Willow, Jonah B"]
[Black "Burrows, Nick"]
[Result "1-0"]
[ECO "C05"]
[WhiteElo "2355"]
[BlackElo "1952"]
[Annotator "NA RC"]
[PlyCount "57"]
[EventDate "2019.12.28"]
[EventType "swiss"]
[EventCountry "ENG"]
[SourceTitle "playchess.com"]
[Source "ChessBase"]
[SourceQuality "1"]
[TimeControl "40/6600+30:3000+30"]

1. e4 {[%emt 0:09:31]} e6 {[%emt 0:09:36]} 2. d4 {[%emt 0:00:07]} d5 {[%emt 0:00:06]} 3. Nd2 {[%emt 0:00:06]} Nf6 {[%emt 0:00:21]} 4. e5 {[%emt 0:00:05]} Nfd7 {[%emt 0:00:06]} 5. c3 {[%emt 0:00:03]} c5 {[%emt 0:00:13]} 6. f4 {[%emt 0:00:04]} Nc6 {[%emt 0:00:24]} 7. Ndf3 {[%emt 0:00:04]} cxd4 {[%emt 0:00:49]} 8. cxd4 {[%emt 0:00:16]} a5 {[%emt 0:00:36]} 9. Bd3 {[%emt 0:03:33] C05: French Tarrasch: 3...Nf6 4 e5 Nfd7, 5 f4 and 5 Bd3 sidelines} (9. a3 a4 10. Bd3 Nb6 11. Ne2 Be7 12. h4 Bd7 13. h5 Nc4 14. Nc3 b5 15. f5 exf5 16. h6 g6 17. Nxd5 {½-½ (35) Hou,Y (2661)-Harika,D (2521) Sharjah 2014}) 9... a4 {[%emt 0:01:09]} 10. Ne2 {[%emt 0:01:09]} Bb4+ {[%emt 0:01:10]} 11. Kf2 {[%emt 0:01:21]} Nb6 $146 {[%emt 0:03:10]} ({Predecessor:} 11... a3 12. b3 f5 13. Be3 O-O 14. Rc1 Be7 15. Bb1 Ndb8 16. Rg1 Bd7 {1-0 (63) Van de Griendt,J (2355)-Bisby,D (2304) Hinckley Island 2009}) 12. Rf1 {[%emt 0:09:10]} Bd7 {[%emt 0:00:00]} 13. Kg1 {[%emt 0:01:36]} Nc4 {[%emt 0:00:59]} 14. f5 {[%emt 0:04:58]} exf5 {[%emt 0:18:04]} 15. Nf4 {[%emt 0:08:14]} Nb6 {[%emt 0:08:32]} 16. Nh5 {[%emt 0:07:10]} Bf8 {[%emt 0:11:17]} 17. Bg5 {[%emt 0:00:56]} Qc7 {[%emt 0:04:24]} 18. Qc2 {[%emt 0:03:50]} h6 {[%emt 0:03:46]} 19. Bh4 {[%emt 0:01:34]} g5 {[%emt 0:02:02]} 20. Nf6+ $16 {[%emt 0:04:26]} Kd8 {[%emt 0:00:36]} 21. Bf2 {[%emt 0:09:02]} Nb4 {[%emt 0:09:53]} 22. Qe2 {[%emt 0:07:37]} Nxd3 {[%emt 0:00:49]} 23. Qxd3 {[%emt 0:02:10]} Qc4 {[%emt 0:05:04]} 24. Qb1 {[%emt 0:12:02]} Be7 {[%emt 0:06:24]} 25. Nxd7 {[%emt 0:00:34]} Nxd7 {[%emt 0:05:21]} 26. Qxf5 {[%emt 0:00:17]} Rc8 {[%emt 0:05:04]} 27. Qxf7 {[%emt 0:05:45]} g4 {[%emt 0:02:00]} 28. Qg7 {[%emt 0:00:12]} Rf8 {[%emt 0:01:23]} 29. Qxg4 {[%emt 0:00:08]} 1-0

[Event "95th Caplin Hastings Congress"]
[Site "Hastings"]
[Date "2020.01.02"]
[Round "6.18"]
[White "Yao, Lan"]
[Black "Chapman, Matt"]
[Result "1-0"]
[ECO "C55"]
[WhiteElo "2281"]
[BlackElo "1937"]
[Annotator "ChessBase"]
[PlyCount "119"]
[EventDate "2019.12.28"]
[EventType "swiss"]
[EventCountry "ENG"]
[SourceTitle "playchess.com"]
[Source "ChessBase"]
[SourceQuality "1"]
[TimeControl "40/6600+30:3000+30"]

1. e4 {[%emt 0:09:32]} e5 {[%emt 0:09:45]} 2. Nf3 {[%emt 0:00:05]} Nc6 {[%emt 0:00:06]} 3. Bc4 {[%emt 0:00:05]} Nf6 {[%emt 0:00:09]} 4. d3 {[%emt 0:00:06]} Be7 {[%emt 0:00:38]} 5. O-O {[%emt 0:00:16]} O-O {[%emt 0:00:10]} 6. Re1 {[%emt 0:00:10]} d6 {[%emt 0:00:26]} 7. a4 {[%emt 0:00:03]} Kh8 {[%emt 0:04:34]} 8. a5 {[%emt 0:05:09]} a6 {[%emt 0:00:22]} 9. c3 {[%emt 0:00:43]} Ng8 {[%emt 0:02:03]} 10. d4 {[%emt 0:13:11]} f5 {[%emt 0:01:03]} 11. d5 {[%emt 0:02:56]} Nb8 {[%emt 0:00:11]} 12. exf5 {[%emt 0:00:20]} Bxf5 {[%emt 0:02:37]} 13. Nbd2 {[%emt 0:03:52]} Nd7 {[%emt 0:04:29]} 14. Ne4 {[%emt 0:06:38]} Qe8 {[%emt 0:15:26]} 15. Ng3 {[%emt 0:06:03]} Bg4 {[%emt 0:23:03]} 16. Be2 {[%emt 0:00:30]} Qg6 {[%emt 0:03:11]} 17. Be3 {[%emt 0:04:42]} Nh6 {[%emt 0:05:28]} 18. h3 {[%emt 0:05:04]} Bxf3 {[%emt 0:04:03]} 19. Bxf3 {[%emt 0:00:07]} Nf6 {[%emt 0:00:28]} 20. Qb3 {[%emt 0:11:24]} Nf5 {[%emt 0:04:33]} 21. Nxf5 {[%emt 0:12:24]} Qxf5 {[%emt 0:00:07]} 22. Qxb7 {[%emt 0:01:48]} e4 {[%emt 0:03:04]} 23. Bg4 {[%emt 0:00:32]} Qxd5 {[%emt 0:03:19]} 24. Qxc7 {[%emt 0:17:33]} Nxg4 {[%emt 0:00:30]} 25. hxg4 {[%emt 0:01:28]} Qe6 {[%emt 0:01:37]} 26. Rad1 {[%emt 0:07:14]} Rf7 {[%emt 0:07:52]} 27. Qc6 {[%emt 0:00:42]} Raf8 {[%emt 0:01:29]} 28. Bb6 {[%emt 0:02:24]} Rf4 {[%emt 0:02:14]} 29. f3 {[%emt 0:02:53]} Qb3 {[%emt 0:07:39]} 30. Qd5 {[%emt 0:01:19]} Qxb2 {[%emt 0:03:26]} 31. Rxe4 {[%emt 0:00:20]} Rxe4 {[%emt 0:03:19]} 32. Qxe4 {[%emt 0:00:03]} Bf6 {[%emt 0:01:14]} 33. Bd4 {[%emt 0:00:48]} Bxd4+ {[%emt 0:00:55]} 34. Qxd4 {[%emt 0:00:06]} Re8 {[%emt 0:01:08]} 35. Qd2 {[%emt 0:05:38]} Qb5 {[%emt 0:02:01]} 36. Qxd6 {[%emt 0:00:50]} Qxa5 {[%emt 0:00:51]} 37. Qc6 {[%emt 0:00:04]} Qe5 {[%emt 0:01:07]} 38. Kh1 {[%emt 0:01:09]} h6 {[%emt 0:01:16]} 39. c4 {[%emt 0:00:35]} Qe2 {[%emt 0:01:17]} 40. Qd7 {[%emt 0:00:40]} Re7 {[%emt 0:01:42]} 41. Qd4 {[%emt 0:50:29]} Rb7 {[%emt 0:06:08]} 42. Qd8+ {[%emt 0:00:00]} Kh7 {[%emt 0:00:11]} 43. Qd5 {[%emt 0:00:00]} Qe7 {[%emt 0:03:56]} 44. c5 {[%emt 0:00:00]} Rb2 {[%emt 0:05:04]} 45. Qh5 {[%emt 0:00:00]} g6 {[%emt 0:07:22]} 46. Qh3 {[%emt 0:00:00]} Rd2 {[%emt 0:10:53]} 47. Rxd2 {[%emt 0:00:00]} Qe1+ {[%emt 0:00:04]} 48. Kh2 {[%emt 0:00:00]} Qxd2 {[%emt 0:00:07]} 49. Qg3 {[%emt 0:00:00]} Kg7 {[%emt 0:03:21]} 50. Qe5+ {[%emt 0:00:00]} Kf7 {[%emt 0:00:28]} 51. c6 {[%emt 0:00:00]} Qd8 {[%emt 0:02:18]} 52. c7 {[%emt 0:00:00]} Qc8 {[%emt 0:00:05]} 53. Kg3 {[%emt 0:00:00]} Qd7 {[%emt 0:00:35]} 54. Qc5 {[%emt 0:00:00]} Qc8 {[%emt 0:00:02]} 55. f4 {[%emt 0:00:00]} Ke6 {[%emt 0:00:40]} 56. Qc6+ {[%emt 0:00:00]} Ke7 {[%emt 0:00:07]} 57. f5 {[%emt 0:00:00]} gxf5 {[%emt 0:00:28]} 58. gxf5 {[%emt 0:00:00]} Qg8+ {[%emt 0:00:34]} 59. Kh2 {[%emt 0:00:00]} Qc8 {[%emt 0:01:22]} 60. Qe6+ {[%emt 0:00:00]} 1-0

[Event "95th Caplin Hastings Congress"]
[Site "Hastings"]
[Date "2020.01.02"]
[Round "6.19"]
[White "Comellas Blanchart, Jordi"]
[Black "Stoyanov, Viktor"]
[Result "0-1"]
[ECO "B11"]
[WhiteElo "2064"]
[BlackElo "2272"]
[Annotator "ChessBase"]
[PlyCount "106"]
[EventDate "2019.12.28"]
[EventType "swiss"]
[EventCountry "ENG"]
[SourceTitle "playchess.com"]
[Source "ChessBase"]
[SourceQuality "1"]
[TimeControl "40/6600+30:3000+30"]

1. e4 {[%emt 0:09:31]} c6 {[%emt 0:17:15]} 2. Nc3 {[%emt 0:00:11]} d5 {[%emt 0:00:31]} 3. Nf3 {[%emt 0:00:07]} Nf6 {[%emt 0:00:12]} 4. e5 {[%emt 0:01:22]} Ne4 {[%emt 0:00:13]} 5. Ne2 {[%emt 0:00:13]} Qb6 {[%emt 0:00:53]} 6. d4 {[%emt 0:00:39]} e6 7. Ng3 {[%emt 0:00:25]} c5 {[%emt 0:00:16]} 8. c3 {[%emt 0:00:37]} Nc6 {[%emt 0:01:11]} 9. Bd3 {[%emt 0:00:19]} Nxg3 {[%emt 0:01:35]} 10. hxg3 {[%emt 0:00:11]} h6 {[%emt 0:04:53]} 11. g4 {[%emt 0:03:38]} Bd7 {[%emt 0:04:29]} 12. Kf1 {[%emt 0:01:37]} O-O-O {[%emt 0:01:27]} 13. dxc5 {[%emt 0:02:35]} Bxc5 {[%emt 0:02:55]} 14. b4 {[%emt 0:03:43]} Be7 {[%emt 0:01:59]} 15. Be3 {[%emt 0:15:48]} Qc7 {[%emt 0:00:06]} 16. a4 {[%emt 0:01:23]} f6 {[%emt 0:19:12]} 17. a5 {[%emt 0:15:48]} d4 {[%emt 0:09:36]} 18. Nxd4 {[%emt 0:15:06]} Nxe5 {[%emt 0:01:13]} 19. Be2 {[%emt 0:10:45]} Nc4 {[%emt 0:00:59]} 20. Bxc4 {[%emt 0:02:00]} Qxc4+ {[%emt 0:00:03]} 21. Qe2 {[%emt 0:00:29]} Qxe2+ {[%emt 0:00:41]} 22. Kxe2 {[%emt 0:00:14]} Kb8 {[%emt 0:01:36]} 23. f3 {[%emt 0:03:34]} Rc8 {[%emt 0:01:57]} 24. Rac1 {[%emt 0:04:14]} Rhd8 {[%emt 0:02:51]} 25. Kf2 {[%emt 0:03:54]} Bf8 {[%emt 0:06:58]} 26. Nb3 {[%emt 0:02:59]} Bb5 {[%emt 0:10:09]} 27. Nc5 {[%emt 0:10:33]} Bc4 {[%emt 0:00:17]} 28. Rhd1 {[%emt 0:00:50]} Ka8 {[%emt 0:03:31]} 29. Ke1 {[%emt 0:04:16]} Bd6 {[%emt 0:01:46]} 30. Kf2 {[%emt 0:02:28]} Be7 {[%emt 0:00:38]} 31. Ke1 {[%emt 0:00:32]} f5 {[%emt 0:00:56]} 32. Rd7 {[%emt 0:02:29]} Rxd7 {[%emt 0:01:45]} 33. Nxd7 {[%emt 0:00:08]} fxg4 {[%emt 0:05:36]} 34. fxg4 {[%emt 0:00:11]} Rd8 {[%emt 0:00:34]} 35. Nc5 {[%emt 0:01:49]} Bh4+ {[%emt 0:05:39]} 36. Bf2 {[%emt 0:00:07]} Bg5 {[%emt 0:00:07]} 37. Rd1 {[%emt 0:01:09]} Rxd1+ {[%emt 0:00:33]} 38. Kxd1 {[%emt 0:00:08]} Bd5 {[%emt 0:00:07]} 39. Ke2 {[%emt 0:01:05]} Bf6 {[%emt 0:01:35]} 40. Be1 {[%emt 0:01:08]} Bxg2 {[%emt 0:06:03]} 41. Nd7 {[%emt 0:06:34]} Be7 {[%emt 0:01:23]} 42. Bg3 {[%emt 0:01:26]} Bc6 {[%emt 0:02:01]} 43. Ne5 {[%emt 0:01:19]} Be8 {[%emt 0:00:17]} 44. Ke3 {[%emt 0:01:19]} Bd6 {[%emt 0:02:18]} 45. Ke4 {[%emt 0:04:54]} Kb8 {[%emt 0:03:02]} 46. Bf2 {[%emt 0:00:43]} a6 {[%emt 0:06:26]} 47. Bc5 {[%emt 0:02:56]} Bxc5 {[%emt 0:04:36]} 48. bxc5 {[%emt 0:00:07]} Kc7 {[%emt 0:00:16]} 49. Kd4 {[%emt 0:04:16]} Ba4 {[%emt 0:02:45]} 50. c4 {[%emt 0:01:48]} Kd8 {[%emt 0:02:12]} 51. Ke3 {[%emt 0:02:40]} Ke7 {[%emt 0:00:10]} 52. Kd4 {[%emt 0:01:39]} Bc6 {[%emt 0:01:41]} 53. g5 {[%emt 0:01:48]} hxg5 {[%emt 0:00:24]} 0-1

[Event "95th Caplin Hastings Congress"]
[Site "Hastings"]
[Date "2020.01.02"]
[Round "6.20"]
[White "Pavlov, Mikhail"]
[Black "Lyell, Mark"]
[Result "0-1"]
[ECO "B12"]
[WhiteElo "1955"]
[BlackElo "2265"]
[Annotator "ChessBase"]
[PlyCount "126"]
[EventDate "2019.12.28"]
[EventType "swiss"]
[EventCountry "ENG"]
[SourceTitle "playchess.com"]
[Source "ChessBase"]
[SourceQuality "1"]
[TimeControl "40/6600+30:3000+30"]

1. e4 {[%emt 0:09:33]} c6 {[%emt 0:09:36]} 2. d4 {[%emt 0:00:04]} d5 {[%emt 0:00:06]} 3. e5 {[%emt 0:00:03]} c5 {[%emt 0:00:08]} 4. dxc5 {[%emt 0:00:06]} Nc6 {[%emt 0:00:24]} 5. a3 {[%emt 0:00:05]} Nxe5 {[%emt 0:00:45]} 6. b4 {[%emt 0:00:13]} g6 {[%emt 0:00:36]} 7. Bb5+ {[%emt 0:00:05]} Bd7 {[%emt 0:01:06]} 8. Qxd5 {[%emt 0:00:06]} Bxb5 {[%emt 0:00:16]} 9. Qxe5 {[%emt 0:00:10]} Nf6 {[%emt 0:00:18]} 10. Nc3 {[%emt 0:00:06]} Bc6 {[%emt 0:00:18]} 11. Nf3 {[%emt 0:00:05]} Bg7 {[%emt 0:00:24]} 12. Bb2 {[%emt 0:00:06]} O-O {[%emt 0:08:38]} 13. Rd1 {[%emt 0:00:05]} Qc8 {[%emt 0:00:53]} 14. O-O {[%emt 0:00:10]} b6 {[%emt 0:10:22]} 15. Nd4 {[%emt 0:12:14]} bxc5 {[%emt 0:19:28]} 16. Nxc6 {[%emt 0:02:52]} Qxc6 {[%emt 0:00:08]} 17. Nd5 {[%emt 0:00:05]} Kh8 {[%emt 0:21:47]} 18. Nxe7 {[%emt 0:01:00]} Qe6 {[%emt 0:00:45]} 19. Qxe6 {[%emt 0:00:34]} fxe6 {[%emt 0:00:02]} 20. Rfe1 {[%emt 0:00:21]} cxb4 {[%emt 0:03:19]} 21. axb4 {[%emt 0:00:05]} Rae8 {[%emt 0:15:19]} 22. Nc6 {[%emt 0:06:04]} Nd5 {[%emt 0:02:40]} 23. Bxg7+ {[%emt 0:01:02]} Kxg7 {[%emt 0:00:02]} 24. c4 {[%emt 0:01:12]} Nb6 {[%emt 0:00:41]} 25. c5 {[%emt 0:01:17]} Nd5 {[%emt 0:00:40]} 26. Ra1 {[%emt 0:00:28]} Rf7 {[%emt 0:02:36]} 27. b5 {[%emt 0:00:23]} Nc3 {[%emt 0:10:50]} 28. Nxa7 {[%emt 0:01:32]} Rd8 {[%emt 0:00:16]} 29. Re3 {[%emt 0:04:04]} Na4 {[%emt 0:02:06]} 30. c6 {[%emt 0:08:07]} Rxa7 {[%emt 0:06:47]} 31. b6 {[%emt 0:00:27]} Ra6 {[%emt 0:03:19]} 32. c7 {[%emt 0:05:29]} Nxb6 {[%emt 0:00:02]} 33. Rc1 {[%emt 0:01:39]} Rc8 {[%emt 0:01:14]} 34. Rxe6 {[%emt 0:00:52]} Kf7 {[%emt 0:00:30]} 35. Rec6 {[%emt 0:00:05]} Ke7 {[%emt 0:00:24]} 36. g3 {[%emt 0:00:10]} Kd7 {[%emt 0:00:32]} 37. Rf6 {[%emt 0:00:25]} Ke7 {[%emt 0:00:27]} 38. Rfc6 {[%emt 0:00:06]} Kd7 {[%emt 0:00:11]} 39. Kg2 {[%emt 0:00:16]} Ra1 {[%emt 0:00:27]} 40. R1c2 {[%emt 0:01:49]} Ra2 {[%emt 0:00:22]} 41. Rc1 {[%emt 0:50:26]} Ra1 {[%emt 0:51:02]} 42. R1c2 {[%emt 0:00:08]} Ra2 {[%emt 0:00:00]} 43. Rc1 {[%emt 0:00:00]} Nd5 {[%emt 0:00:00]} 44. R6c5 {[%emt 0:00:00]} Rd2 {[%emt 0:00:00]} 45. h4 {[%emt 0:00:00]} Rxc7 {[%emt 0:00:00]} 46. Rxc7+ {[%emt 0:00:00]} Nxc7 {[%emt 0:00:00]} 47. Rc3 {[%emt 0:00:00]} Nd5 {[%emt 0:00:00]} 48. Rf3 {[%emt 0:00:00]} Ke7 {[%emt 0:00:00]} 49. Ra3 {[%emt 0:00:00]} Nf6 {[%emt 0:00:00]} 50. Ra7+ {[%emt 0:00:00]} Ke6 {[%emt 0:00:00]} 51. Ra6+ {[%emt 0:00:00]} Kf5 {[%emt 0:00:00]} 52. Kf3 {[%emt 0:00:00]} Rd3+ {[%emt 0:00:00]} 53. Ke2 {[%emt 0:00:00]} Rb3 {[%emt 0:00:00]} 54. f3 {[%emt 0:00:00]} Rb2+ {[%emt 0:00:00]} 55. Kd3 {[%emt 0:00:00]} Rb3+ {[%emt 0:00:00]} 56. Ke2 {[%emt 0:00:00]} Nd5 {[%emt 0:00:00]} 57. Ra7 {[%emt 0:00:00]} h5 {[%emt 0:00:00]} 58. Ra5 {[%emt 0:00:00]} Ke5 {[%emt 0:00:00]} 59. Ra6 {[%emt 0:00:08]} Rb2+ {[%emt 0:00:00]} 60. Ke1 {[%emt 0:01:20]} Kd4 {[%emt 0:00:00]} 61. Kf1 {[%emt 0:11:23]} Ne3+ {[%emt 0:00:00]} 62. Ke1 {[%emt 0:00:34]} Nf5 {[%emt 0:01:25]} 63. Rxg6 {[%emt 0:03:02]} Ke3 {[%emt 0:00:15]} 0-1